Cogmind - Beta 10.2 @@@ ROGUE MODE // 2021.06.11 @ 18:09:39 Player: CrossedViper Result: Destroyed by B-75 Beast with Heavy Machine Gun Performance ------------- Evolutions (3) 1500 Regions Visited (10) 2000 Robots Destroyed (123) 615 Value Destroyed (3982) 3982 Prototype IDs (14) 280 Alien Tech Used (0) 0 Bonus (1635) 1635 TOTAL SCORE: 10012 Bonus ------- High Alert Combat Kills 1239 Follower Combat Kills 181 Met Data Miner 300 Friendly Fire -85 Cogmind --------- Core Integrity 0/700 Matter 300/300 Energy 96/100 System Corruption 6% Temperature Cool (0) Movement Core (50) Location -6/Proximity Caves Parts ------- > --- POWER (1) -------- (None) > --- PROPULSION (3) --- (None) > --- UTILITY (6) ------ Enhanced Optical Array Melee Analysis Suite > --- WEAPON (3) ------- Makeshift Spear > --- INVENTORY (4) ---- System Mapper Deep Network Scanner Ghost Barrier Makeshift Spear Peak State ------------ > --- POWER ------------ Makeshift Power Source > --- PROPULSION ------- Aerolev Unit Aerolev Unit Aerolev Unit > --- UTILITY ---------- Improved Cooling System Enhanced Optical Array Melee Analysis Suite Melee Analysis Suite Armor Integrity Analyzer Improved Medium Armor Plating > --- WEAPON ----------- Makeshift Spear Makeshift Spear Makeshift Spear > --- INVENTORY -------- System Mapper Deep Network Scanner Ghost Barrier Makeshift Spear [Rating: 51] Favorites ----------- Power Ion Engine Engine Ion Engine Power Core Light Nuclear Core Propulsion Light Treads Treads Light Treads Leg Carbon-fiber Leg Hover Unit Aerolev Unit Utility High-capacity Storage Unit Device Improved Cooling System Storage High-capacity Storage Unit Processor Melee Analysis Suite Protection Light Armor Plating Weapon Assault Rifle Energy Gun Improved Spread Laser Energy Cannon Plasma Cannon Ballistic Gun Assault Rifle Launcher Grenade Launcher Slashing Weapon Katana Piercing Weapon Makeshift Spear Build | -11 -10 -10 -10 -9 -8 -7 -7 -7 -7 -6 ------- Run | Scr Mat Min Exi Min Mat Fac Low Low Dat Pro Slots Evolved 6 | . . . . . 4 2 . . . . Power . | . . . . . . . . . . . Propulsion 1 | . . . . . . 1 . . . . Utility 4 | . . . . . 3 1 . . . . Weapon 1 | . . . . . 1 . . . . . Parts Attached 104 | 5 7 2 2 8 25 47 8 . . . Power 9 | 1 1 . . 1 2 3 1 . . . Engine 6 | 1 1 . . 1 1 1 1 . . . Core 3 | . . . . . 1 2 . . . . Reactor . | . . . . . . . . . . . Propulsion 20 | 2 . . . 2 4 12 . . . . Treads 8 | 2 . . . 1 1 4 . . . . Leg 4 | . . . . 1 3 . . . . . Wheel . | . . . . . . . . . . . Hover 8 | . . . . . . 8 . . . . Flight . | . . . . . . . . . . . Utility 34 | . 3 1 2 2 10 14 2 . . . Device 7 | . . . . . 1 5 1 . . . Storage 4 | . 1 1 1 . 1 . . . . . Processor 7 | . . . . . 1 5 1 . . . Hackware . | . . . . . . . . . . . Protection 16 | . 2 . 1 2 7 4 . . . . Artifact . | . . . . . . . . . . . Weapon 41 | 2 3 1 . 3 9 18 5 . . . Energy Gun 1 | . . . . . . 1 . . . . Energy Cannon 2 | . . . . . . 2 . . . . Ballistic Gun 23 | 2 2 . . 2 6 11 . . . . Ballistic Cannon . | . . . . . . . . . . . Launcher 10 | . 1 1 . 1 3 3 1 . . . Special Weapon . | . . . . . . . . . . . Impact Weapon . | . . . . . . . . . . . Slashing Weapon 1 | . . . . . . 1 . . . . Piercing Weapon 4 | . . . . . . . 4 . . . Special Melee Weapon . | . . . . . . . . . . . Unidentified Prototypes 4 | . . . . . . 4 . . . . Parts Lost 41 | . . 1 . 2 10 18 3 . 3 4 Power 4 | . . . . . . 2 1 . 1 . Propulsion 10 | . . 1 . . 1 5 . . 1 2 Utility 18 | . . . . 2 5 7 1 . 1 2 Weapon 9 | . . . . . 4 4 1 . . . Highest Loss Streak 6 | . . 1 . 1 6 5 3 . 3 2 Average Slot Usage (%) 89 | . 97 98 85 98 84 83 98 100 95 68 Engine 8 | . 14 14 14 14 5 3 5 7 7 . Core 1 | . . . . . 3 3 2 . . . Treads 11 | . 28 26 14 14 9 7 . . . . Leg 4 | . . . . 13 8 4 . . . . Hover 5 | . . . . . . 6 23 23 20 13 Device 4 | . . . . . . 10 7 7 7 6 Storage 10 | . 8 14 14 14 16 9 . . . . Processor 6 | . . . . . . 5 26 30 27 20 Protection 11 | . 16 14 14 13 15 7 9 7 7 3 Ballistic Gun 15 | . 27 14 14 26 19 15 1 . . . Launcher 3 | . . 14 14 1 5 1 . . . . Piercing Weapon 4 | . . . . . . . 20 23 23 23 Naked Turns . | . . . . . . . . . . . Heaviest Build 110 | 5 17 21 45 50 101 110 27 19 19 15 Greatest Support 63 | 20 40 40 20 40 40 63 33 33 33 22 Greatest Overweight (x) 4 | . . 1 2 2 4 3 . . . . Average Overweight (x) . | . . . 1 1 2 . . . . . Largest Inventory Capacity 20 | 4 6 8 12 12 20 20 4 4 4 4 Average Capacity 10 | 4 5 7 10 12 18 14 4 4 4 4 Most Carried 20 | 2 6 8 8 8 18 20 4 3 4 4 Average Carried 8 | 1 5 6 7 6 13 12 2 3 3 4 Final Capacity 20 | 4 6 8 12 12 20 4 4 4 4 4 Final Carried 13 | 2 6 8 8 7 13 2 3 3 4 4 Class Distribution -------------------- 47% | Mutant 14% | Hauler-Tank 13% | Derelict-Mutant 12% | Hauler-Mutant 8% | Scavenger-Mutant Dominant Class ---------------- Mutant | -10/Materials Mutant | -10/Mines Mutant | -10/Exiles Mutant | -9/Mines Hauler-Mutant | -8/Materials Hauler-Tank | -7/Factory Derelict-Mutant | -7/Lower Caves Derelict-Mutant | -7/Lower Caves Derelict-Mutant | -7/Data Miner Mutant | -6/Proximity Caves Resources | -11 -10 -10 -10 -9 -8 -7 -7 -7 -7 -6 ----------- Run | Scr Mat Min Exi Min Mat Fac Low Low Dat Pro Matter Collected 2951 | 204 225 106 141 154 742 1159 199 . . 21 Remotely . | . . . . . . . . . . . Salvage Created 3928 | . 599 61 . 146 1169 1643 285 . 25 . Parts 231 | . 27 11 . 9 79 86 16 . 3 . Haulers Intercepted 7 | . 1 . . . 3 3 . . . . Recyclers Shooed 6 | . 2 . . . 3 1 . . . . Parts Field Recycled . | . . . . . . . . . . . Retrieved Matter . | . . . . . . . . . . . Parts Self-Destructed 15 | . . . . . . . 15 . . . Prevented . | . . . . . . . . . . . Kills | -11 -10 -10 -10 -9 -8 -7 -7 -7 -7 -6 ------- Run | Scr Mat Min Exi Min Mat Fac Low Low Dat Pro Combat Hostiles Destroyed 92 | . 9 9 . 5 29 32 8 . . . Melee 11 | . . . . . . 5 6 . . . Guns 35 | . 7 . . 3 8 17 . . . . Cannons 5 | . . . . . . 5 . . . . AOE 41 | . 2 9 . 2 21 5 2 . . . Classes Destroyed 15 | . 5 . . 3 5 2 . . . . Worker 9 | . . . . 1 6 2 . . . . Builder 4 | . 1 . . . 2 1 . . . . Hauler 7 | . 1 . . . 3 3 . . . . Recycler 5 | . 3 . . . 1 1 . . . . Mechanic 1 | . . . . . . 1 . . . . Operator 1 | . . . . . 1 . . . . . Watcher 3 | . . . . . 2 1 . . . . Swarmer 26 | . 3 8 . 1 2 9 3 . . . Grunt 45 | . 6 1 . 2 20 15 1 . . . Brawler 4 | . . . . 1 1 1 1 . . . Duelist 3 | . . . . . 2 1 . . . . Protector 2 | . . . . . 1 1 . . . . Sentry 6 | . . . . . 3 3 . . . . Demolisher 1 | . . . . 1 . . . . . . Programmer 2 | . . . . . . 2 . . . . Thug 3 | . . . . . . . 3 . . . Best Kill Streak 10 | . 5 3 . 3 10 9 3 . 1 . Combat Bots Only 6 | . 5 3 . 3 6 6 3 . . . Max Kills in Single Turn 3 | . 2 2 . 1 3 3 1 . 1 . Gunslinging . | . . . . . . . . . . . Exploded 3 | . 1 2 . 1 3 3 1 . . . Melee 1 | . . . . . . 1 1 . . . Uniques/NPCs Destroyed 1 | . . . . . . . . . 1 . Data Miner (-7/Data Miner) Combat | -11 -10 -10 -10 -9 -8 -7 -7 -7 -7 -6 -------- Run | Scr Mat Min Exi Min Mat Fac Low Low Dat Pro Damage Taken 7679 | . 475 126 . 508 1891 3303 582 13 223 558 Core 1002 | . 53 10 . 40 183 257 148 . . 311 Absorbed by Shields . | . . . . . . . . . . . Core Remaining (%) 74 | 100 . . . 58 66 . . . . . Volleys Fired 236 | . 51 10 . 13 83 75 4 . . . Largest 3 | . 2 1 . 2 3 3 1 . . . Hottest 136 | . 40 30 . 40 60 136 39 . . . Shots Fired 494 | . 100 10 . 23 168 189 4 . . . Gun 397 | . 98 . . 20 141 138 . . . . Cannon 44 | . . . . . . 44 . . . . Launcher 53 | . 2 10 . 3 27 7 4 . . . Special . | . . . . . . . . . . . Kinetic 397 | . 98 . . 20 141 138 . . . . Thermal 44 | . . . . . . 44 . . . . Explosive 53 | . 2 10 . 3 27 7 4 . . . Electromagnetic . | . . . . . . . . . . . Robot Hit Streak 28 | . 6 1 . 16 28 20 3 . . . Robot Miss Streak 8 | . 3 1 . 3 2 8 2 . . . Penetration Max . | . . . . . . . . . . . Secondary Targets 4 | . . . . 1 1 2 . . . . Max Gunslinging Chain 1 | . . . . 1 1 1 . . . . Shots Hit Robots 369 | . 60 2 . 18 118 159 11 . 1 . Core Hits 287 | . 28 12 . 14 107 108 17 . 1 . Critical Hits 5 | . 1 . . 1 1 1 1 . . . Critical Kills 1 | . 1 . . . . . . . . . Critical Parts Destroyed 4 | . . . . 1 1 1 1 . . . Melee Attacks 87 | . . . . . . 26 22 . 34 5 Impact . | . . . . . . . . . . . Slashing 26 | . . . . . . 26 . . . . Piercing 61 | . . . . . . . 22 . 34 5 Sneak Attacks 7 | . . . . . . 6 . . 1 . Combat Hostiles . | . . . . . . . . . . . Follow-up Attacks 3 | . . . . . . . 3 . . . Damage Inflicted 11694 | . 816 624 . 555 4411 4334 843 . 111 . Guns 3826 | . 651 . . 273 1196 1706 . . . . Cannons 796 | . . . . . . 796 . . . . Explosions 5474 | . 150 621 . 268 3193 707 535 . . . Melee 1532 | . . . . . . 1113 308 . 111 . Ramming 66 | . 15 3 . 14 22 12 . . . . Kinetic 3826 | . 651 . . 273 1196 1706 . . . . Thermal 796 | . . . . . . 796 . . . . Explosive 5365 | . 150 621 . 268 3084 707 535 . . . Electromagnetic 109 | . . . . . 109 . . . . . Impact . | . . . . . . . . . . . Slashing 1113 | . . . . . . 1113 . . . . Piercing 419 | . . . . . . . 308 . 111 . Highest Corruption 6 | . 1 1 1 1 2 2 2 2 6 6 Average Corruption 1 | . 1 1 1 1 2 2 2 2 3 6 Corruption Purged . | . . . . . . . . . . . Effects 38 | . 2 3 2 5 2 7 5 2 2 8 Message Errors 13 | . . 1 2 2 . 2 2 1 . 3 Matter Fused 3 | . . . . . . . . . . 3 Heat Flow Errors 2 | . . . . . . . . . 1 1 Energy Discharges 7 | . 1 . . 2 . 1 2 . . 1 Data Loss (minor) 5 | . . 2 . 1 . . 1 1 . . Targeting Errors 6 | . 1 . . . 2 2 . . 1 . Weapon Failures 2 | . . . . . . 2 . . . . Overload Shots . | . . . . . . . . . . . Overflow Damage 314 | . . 8 . 1 63 225 17 . . . Projectiles 9 | . . . . . . 9 . . . . Explosions 97 | . . 8 . 1 63 8 17 . . . Melee 208 | . . . . . . 208 . . . . Knockbacks . | . . . . . . . . . . . Impact . | . . . . . . . . . . . Kinetic . | . . . . . . . . . . . Secondary . | . . . . . . . . . . . Self-Inflicted Damage 531 | . . 53 . 23 186 205 64 . . . Shots 20 | . . 3 . 1 8 7 1 . . . Rammed 10 | . 3 1 . 1 4 1 . . . . Targets Rammed 10 | . 3 1 . 1 4 1 . . . . Kicked . | . . . . . . . . . . . Crushed . | . . . . . . . . . . . Highest Temperature 289 | . 44 . . 10 289 171 61 . 233 90 Average Temperature 49 | . 14 . . 5 73 35 31 . 112 59 Received Heat Transfer 2432 | . 234 6 . 66 765 1131 182 . 6 42 Effects 2 | . . . . . 2 . . . . . Interference 2 | . . . . . 2 . . . . . Siege Activations . | . . . . . . . . . . . Robots Corrupted . | . . . . . . . . . . . Combat Hostiles . | . . . . . . . . . . . Parts Fried . | . . . . . . . . . . . Impact Corruptions . | . . . . . . . . . . . Robots Melted . | . . . . . . . . . . . Combat Hostiles . | . . . . . . . . . . . Parts Melted 4 | . . . . . . 4 . . . . Heat Transferred 1286 | . . . . . . 1286 . . . . Parts Sabotaged . | . . . . . . . . . . . Parts Stolen . | . . . . . . . . . . . Parts Stripped . | . . . . . . . . . . . Power Chain Reactions . | . . . . . . . . . . . Missiles Intercepted . | . . . . . . . . . . . Alert | -11 -10 -10 -10 -9 -8 -7 -7 -7 -7 -6 ------- Run | Scr Mat Min Exi Min Mat Fac Low Low Dat Pro Peak Influence 1278 | . 237 347 . 115 1016 1278 . . . . Initial 449 | . . 47 . . 33 449 . . . . Average 488 | . 112 263 . 84 616 891 . . . . Maximum Alert Level 4 | . 1 1 . . 3 4 . . . . Low Security (%) 35 | 100 63 16 . 100 22 . . . . . Level 1 16 | . 36 83 . . 7 . . . . . Level 2 11 | . . . . . 21 20 . . . . Level 3 27 | . . . . . 48 50 . . . . Level 4 8 | . . . . . . 29 . . . . Level 5 . | . . . . . . . . . . . High Security . | . . . . . . . . . . . Max Security . | . . . . . . . . . . . Squads Dispatched 21 | . 2 . . . 9 9 . . . 1 Investigation 1 | . 1 . . . . . . . . . Extermination 1 | . . . . . . 1 . . . . Reinforcement 8 | . 1 . . . 4 3 . . . . Assault 5 | . . . . . 2 2 . . . 1 Garrison 6 | . . . . . 3 3 . . . . Intercept . | . . . . . . . . . . . Construction Impeded 1 | . . . . . 1 . . . . . Haulers Reinforced 1 | . . . . . . 1 . . . . Stealth | -11 -10 -10 -10 -9 -8 -7 -7 -7 -7 -6 --------- Run | Scr Mat Min Exi Min Mat Fac Low Low Dat Pro Distress Signals 6 | . 1 . . . 5 . . . . . Communications Jammed . | . . . . . . . . . . . Distress Signals . | . . . . . . . . . . . Times Spotted 185 | . 18 11 . 8 58 55 17 1 2 15 Peak Tracking Total 15 | . 5 3 . 2 8 10 10 4 2 15 Tactical Retreats 22 | . . 1 . 1 8 8 3 . . 1 Traps | -11 -10 -10 -10 -9 -8 -7 -7 -7 -7 -6 ------- Run | Scr Mat Min Exi Min Mat Fac Low Low Dat Pro Traps Triggered 4 | . 2 . . . 1 1 . . . . Indirectly . | . . . . . . . . . . . Trap Hack Attempts . | . . . . . . . . . . . Triggered . | . . . . . . . . . . . Disarmed . | . . . . . . . . . . . Reprogrammed . | . . . . . . . . . . . Reused . | . . . . . . . . . . . Traps Extracted . | . . . . . . . . . . . Installed . | . . . . . . . . . . . Triggered . | . . . . . . . . . . . Machines | -11 -10 -10 -10 -9 -8 -7 -7 -7 -7 -6 ---------- Run | Scr Mat Min Exi Min Mat Fac Low Low Dat Pro Machines Disabled 20 | . 1 3 . 1 3 11 . . 1 . Max in Single Turn 4 | . 1 1 . 1 2 4 . . 1 . Garrison Access 1 | . . . . . 1 . . . . . Machines Sabotaged . | . . . . . . . . . . . Garrisons Compromised . | . . . . . . . . . . . Overloaded Fab Kills . | . . . . . . . . . . . Fab Network Shutdowns . | . . . . . . . . . . . Hacking | -11 -10 -10 -10 -9 -8 -7 -7 -7 -7 -6 --------- Run | Scr Mat Min Exi Min Mat Fac Low Low Dat Pro Machines Accessed 11 | . 1 1 1 . . 3 1 . 4 . Terminals 5 | . 1 1 . . . 3 . . . . Fabricators . | . . . . . . . . . . . Repair Stations . | . . . . . . . . . . . Recycling Units . | . . . . . . . . . . . Scanalyzers . | . . . . . . . . . . . Garrison Access . | . . . . . . . . . . . Total Hacks 46 | . 2 5 1 . . 7 1 . 30 . Successful 38 | . . 2 1 . . 4 1 . 30 . Failed 8 | . 2 3 . . . 3 . . . . Catastrophic 1 | . 1 . . . . . . . . . Database Lockouts . | . . . . . . . . . . . Manual 6 | . . 5 . . . 1 . . . . Terminals 14 | . 2 5 . . . 7 . . . . Fabricators . | . . . . . . . . . . . Repair Stations . | . . . . . . . . . . . Recycling Units . | . . . . . . . . . . . Scanalyzers . | . . . . . . . . . . . Garrison Access . | . . . . . . . . . . . Terminal Hacks 38 | . . 2 1 . . 4 1 . 30 . Record 12 | . . . 1 . . . . . 11 . Part Schematic 9 | . . . . . . 1 . . 8 . Robot Schematic 8 | . . . . . . . . . 8 . Robot Analysis 2 | . . 2 . . . . . . . . Prototype ID Bank 3 | . . . . . . . . . 3 . Open Door 1 | . . . . . . . 1 . . . Branch Access Points 1 | . . . . . . 1 . . . . Security Status 1 | . . . . . . 1 . . . . Hauler Manifests 1 | . . . . . . 1 . . . . Fabricator Hacks . | . . . . . . . . . . . Repair Station Hacks . | . . . . . . . . . . . Recycling Unit Hacks . | . . . . . . . . . . . Scanalyzer . | . . . . . . . . . . . Garrison Access Hacks . | . . . . . . . . . . . Unauthorized Hacks . | . . . . . . . . . . . Terminals . | . . . . . . . . . . . Fabricators . | . . . . . . . . . . . Repair Stations . | . . . . . . . . . . . Recycling Units . | . . . . . . . . . . . Scanalyzers . | . . . . . . . . . . . Garrison Access . | . . . . . . . . . . . Data Cores Recovered . | . . . . . . . . . . . Used . | . . . . . . . . . . . Hacking Detections 5 | . 1 1 . . . 3 . . . . Full Trace Events 2 | . 1 1 . . . . . . . . Feedback Events . | . . . . . . . . . . . Feedback Blocked . | . . . . . . . . . . . Robot Schematics Acquired 8 | . . . . . . . . . 8 . Robots Built . | . . . . . . . . . . . Matter . | . . . . . . . . . . . Time . | . . . . . . . . . . . Total Robot Build Rating . | . . . . . . . . . . . Part Schematics Acquired 9 | . . . . . . 1 . . 8 . Parts Built . | . . . . . . . . . . . Matter . | . . . . . . . . . . . Time . | . . . . . . . . . . . Total Part Build Rating . | . . . . . . . . . . . Parts Repaired . | . . . . . . . . . . . Time . | . . . . . . . . . . . Parts Recycled . | . . . . . . . . . . . Recycled Matter . | . . . . . . . . . . . Retrieved Matter . | . . . . . . . . . . . Retrieved Components . | . . . . . . . . . . . Parts Scanalyzed . | . . . . . . . . . . . Part Schematics Acquired . | . . . . . . . . . . . Parts Damaged . | . . . . . . . . . . . Bothacking | -11 -10 -10 -10 -9 -8 -7 -7 -7 -7 -6 ------------ Run | Scr Mat Min Exi Min Mat Fac Low Low Dat Pro Used RIF Installer . | . . . . . . . . . . . Robots Hacked . | . . . . . . . . . . . Non-combat . | . . . . . . . . . . . Combat . | . . . . . . . . . . . Robot Hacks Applied . | . . . . . . . . . . . Relay Couplers Released 2 | . . . . . 2 . . . . . Machine Destruction 2 | . . . . . 2 . . . . . Robots Rewired 2 | . . . . . . . 2 . . . Allies Hacked . | . . . . . . . . . . . Hacks Repelled . | . . . . . . . . . . . Allies | -11 -10 -10 -10 -9 -8 -7 -7 -7 -7 -6 -------- Run | Scr Mat Min Exi Min Mat Fac Low Low Dat Pro Total Allies 7 | . . 2 . 3 . . 2 . . . Largest Group 3 | . . 2 1 3 2 . 2 2 . . Highest-Rated Group 50 | . . 42 31 40 32 . 50 50 . . Highest-Rated Ally 31 | . . 31 31 16 16 . 25 25 . . Total Orders . | . . . . . . . . . . . Ally Attacks 83 | . . 7 . 14 62 . . . . . Total Damage 1008 | . . 105 . 132 771 . . . . . Kills 10 | . . 1 . 3 6 . . . . . Allies Corrupted . | . . . . . . . . . . . Allies Melted . | . . . . . . . . . . . Intel | -11 -10 -10 -10 -9 -8 -7 -7 -7 -7 -6 ------- Run | Scr Mat Min Exi Min Mat Fac Low Low Dat Pro Robot Analysis Total 2 | . . 2 . . . . . . . . Derelict Logs Recovered 4 | . . . . 1 . . 2 . . 1 Drone Launches . | . . . . . . . . . . . Drone Recoveries . | . . . . . . . . . . . Exploration | -11 -10 -10 -10 -9 -8 -7 -7 -7 -7 -6 ------------- Run | Scr Mat Min Exi Min Mat Fac Low Low Dat Pro Turns Passed 4627 | 68 506 336 352 526 864 998 493 155 99 230 Spaces Moved 3444 | 41 205 192 182 235 282 658 859 284 114 392 Core 16 | 5 . . . . . 2 . . . 9 Treads 1133 | 36 205 192 182 235 155 128 . . . . Legs 205 | . . . . . 127 78 . . . . Wheels . | . . . . . . . . . . . Hover 2090 | . . . . . . 450 859 284 114 383 Flight . | . . . . . . . . . . . Fastest Speed 42 | 50 160 160 180 180 180 42 42 42 42 46 Average Speed 99 | 146 160 162 191 199 205 92 42 42 42 46 Slowest Speed 240 | 160 160 180 200 200 240 210 42 42 46 50 Overloaded Moves . | . . . . . . . . . . . Propulsion Burnouts . | . . . . . . . . . . . Robots Hopped . | . . . . . . . . . . . Cave-ins Triggered 1 | . . . . . . . . . 1 . Exploration Rate (%) 49 | 5 52 41 53 57 45 29 79 54 81 46 Regions Visited 10 Branch Regions 7 Pre-discovered Areas 4 | . . . 1 1 . . 1 . 1 . Known Exits Taken 1 | . . . . . . 1 . . . . Unknown Exits Taken 9 | 1 1 1 1 1 1 . 1 1 1 . Scrap Searched 7 | . . 1 . 1 . . 3 2 . . Spaces Dug 68 | . . . . 6 11 9 21 . 19 2 Terrain Destroyed 366 | . 7 63 . 17 154 60 44 . 19 2 Melee 24 | . . . . . . 1 2 . 19 2 Projectile . | . . . . . . . . . . . AOE 342 | . 7 63 . 17 154 59 42 . . . Terrain Rammed . | . . . . . . . . . . . Walls Destroyed . | . . . . . . . . . . . Machines Disabled . | . . . . . . . . . . . Actions | -11 -10 -10 -10 -9 -8 -7 -7 -7 -7 -6 --------- Run | Scr Mat Min Exi Min Mat Fac Low Low Dat Pro Total 4131 | 47 288 207 186 267 418 850 971 319 142 436 Wait 162 | . 13 . . 6 4 1 62 36 2 38 Move 3434 | 40 204 191 181 234 281 658 858 283 112 392 Hop . | . . . . . . . . . . . Pick Up 55 | 2 6 2 1 2 15 20 4 . 3 . Fast Attach 50 | 5 3 . . 3 8 26 5 . . . Attach 29 | . . . . 3 11 13 2 . . . Detach . | . . . . . . . . . . . Swap 25 | . 4 2 2 2 6 8 1 . . . Drop 49 | . 4 1 2 3 6 23 5 . 2 3 Fire 236 | . 51 10 . 13 83 75 4 . . . Melee 66 | . . . . . . 26 15 . 22 3 Ram . | . . . . . . . . . . . Kick 2 | . . . . . 2 . . . . . Crush 7 | . 3 1 . 1 2 . . . . . Escape Stasis 1 | . . . . . . . . . 1 . Rewire 15 | . . . . . . . 15 . . . Trap . | . . . . . . . . . . . Miscellaneous . | . . . . . . . . . . . Route ------- -11/Scrapyard -10/Materials (discovered 2 exits: [*Mat] / *Min) -10/Mines (discovered 2 exits: [*Mat] / *Exi) -10/Exiles -9/Mines -8/Materials -7/Factory (discovered 3 exits: [*Fac] / *Low x2) -7/Lower Caves -7/Lower Caves -7/Data Miner -6/Proximity Caves History --------- Turn | Location | Event 21 | -11/Scrapyard | Discovered new exit (range 16) 69 | -11/Scrapyard | Entered Materials 314 | -10/Materials | Build established: Mutant 343 | -10/Materials | Discovered new exit (range 11) 442 | -10/Materials | Discovered new exit (range 8) 575 | -10/Materials | Entered Mines 637 | -10/Mines | Discovered new exit (range 8) 904 | -10/Mines | Deemed a non-threat by the Exiles lab entrance 904 | -10/Mines | Discovered new exit (range 5) 911 | -10/Mines | Entered Exiles 911 | -10/Exiles | Accompanied by 1 ally 941 | -10/Exiles | Led the pair of lost Derelicts to a safe place 955 | -10/Exiles | Met 8R-AWN 985 | -10/Exiles | Met EX-HEX 1083 | -10/Exiles | Met EX-DEC 1127 | -10/Exiles | Learned location of Zion (-6) 1243 | -10/Exiles | Discovered new exit (range 10) 1263 | -10/Exiles | Entered Mines 1346 | -9/Mines | Assembled infested the area 1351 | -9/Mines | Assisted by a Guerilla fighting off Assembled 1662 | -9/Mines | Received a Rocket Launcher from a helpful Derelict 1687 | -9/Mines | Assisted by bots powering up and referring to "LRC-V3" 1759 | -9/Mines | Discovered new exit (range 16) 1789 | -9/Mines | Entered Materials 1789 | -8/Materials | Accompanied by 2 allies 1789 | -8/Materials | Evolved 4 slots: Utility x3, Weapon x1 1998 | -8/Materials | Garrison activated, responded to threat 2111 | -8/Materials | Garrison activated, responded to threat 2261 | -8/Materials | Lost 6 parts (1n2u3w) 2484 | -8/Materials | Build established: Hauler-Mutant 2548 | -8/Materials | Discovered new exit (range 13) 2589 | -8/Materials | First assault squad dispatched 2653 | -8/Materials | Entered Factory 2653 | -7/Factory | Evolved 2 slots: Propulsion x1, Utility x1 2929 | -7/Factory | Identified exit to Lower Caves 3053 | -7/Factory | First assault squad dispatched 3089 | -7/Factory | Build established: Hauler-Tank 3155 | -7/Factory | Garrison activated, responded to threat 3225 | -7/Factory | Lost 5 parts (1n2u2w) 3334 | -7/Factory | Lost 5 parts (1p2n2w) 3491 | -7/Factory | Discovered new exit (range 20) 3569 | -7/Factory | Lost 4 parts (1p3u) 3651 | -7/Factory | Entered Lower Caves 3692 | -7/Lower Caves | Learned Factory stockpile data 3826 | -7/Lower Caves | Lost 3 parts (1p1u1w) 3881 | -7/Lower Caves | Core integrity fell below 50% 4031 | -7/Lower Caves | Discovered new exit (range 18) 4032 | -7/Lower Caves | Encountered a Warlord checkpoint 4086 | -7/Lower Caves | Build established: Derelict-Mutant 4144 | -7/Lower Caves | Entered another Lower Caves area 4144 | -7/Lower Caves | Accompanied by 2 allies 4260 | -7/Lower Caves | Discovered new exit (range 6) 4299 | -7/Lower Caves | Entered Data Miner 4299 | -7/Data Miner | Discovered new exit (range 6) 4305 | -7/Data Miner | Met Data Miner 4318 | -7/Data Miner | Learned location of Section 7 (-2) 4318 | -7/Data Miner | Acquired the access code to Warlord's prototype stash 4323 | -7/Data Miner | Received God Mode back door access code from Data Miner 4330 | -7/Data Miner | Destroyed Data Miner 4333 | -7/Data Miner | Found Prototype Hackware 4335 | -7/Data Miner | Found Prototype Hackware 4336 | -7/Data Miner | Found Prototype Hackware 4342 | -7/Data Miner | Data Conduit disabled 4366 | -7/Data Miner | Crushed by falling debris 4398 | -7/Data Miner | Entered Proximity Caves 4410 | -6/Proximity Caves | Spotted B-75 Beast 4427 | -6/Proximity Caves | Lost 3 parts (1p1n1u) 4548 | -6/Proximity Caves | Learned Factory security intel 4571 | -6/Proximity Caves | Attracted the attention of an 0b10 checkpoint 4600 | -6/Proximity Caves | Attracted the attention of an 0b10 outpost 4623 | -6/Proximity Caves | Core integrity fell below 20% 4628 | -6/Proximity Caves | Destroyed by B-75 Beast with Heavy Machine Gun Last Messages --------------- Data stored: Factory security intel. 04554_ System corrupted: Matter fused (-9). 04555_ Acquired 4 matter. 04558_ Acquired 5 matter. 04561_ Acquired 8 matter. 04571_ Y-54 Guardian: "INTERCEPTING UNREGISTERED DERELICT." 04576_ Aerolev Unit destroyed. 04580_ 1PCFM 04604_ Y-64 Sentinel: "REQUESTING BACKUP." 04612_ ZB8 CA0D|E 04622_ Critical hit. 04622_ Aerolev Unit destroyed. 04623_ Dropped Mak. Spear. Map ----- +----------------------------------------------------+ | ### #??? ???????????????????????????????????? | | ### ????????????????????????????????????? | | ??????????????????????????????????????? | | ???????????????????????????????????????? | | ????????????????????????????????????????? | | #?????????? ??????????????####???????????? | | #???????? ?????????????##" #???????????? | | #????????? ????????????## ""????????????? | | #????????##? ?????##?????#" "#####????????? | | ??????????# ????## ??#### "# ##???????? | | #??????????# ##### ### ###?????? | | #??????????# #?????? | | #???????????# ### ##????? | | #???????????????# #### ### #????? | | ##????? #????????# #??# ## #????? | | ##### #????????# #??## %= #????? | | #????????# #???#### # ##????? | | ####?????# #??????# ## ## ##?????? | | ####### #????## ###???## ## #?####??????? | | ##??## #????# % #?###BB ### #???????????? | | #?## #????# ### BB ### #???????????? | | ### #??#### ## ### ##??????????? | | "# #?## ## % "## ##?????????? | | ### ### !% ####"# ##????????? | | #?# ## %% % #??##/ #????????? | | ###### "## % @ #?## / ## #????????? | | #????# ##;###?# ## #????????? | | ####????### % ####????# #????????? | | ??????????## # ##???????## #????????? | | ???????????#### # %#?????????## #????????? | | ?????????????## #% ####??????## # #????????? | | ????????????## # #?????## ## #######??? | | ????????????# #?##### #??? | | ???# #?# ###"# #??? | | ???# #?# # # "# #??? | | ## ##?# # ### # + "# #??? | | ?## #??# ## #?# #### "# #??? | | ???# #??# ?# ### #" "# #??? | | ?? ???? ##??## ?## #" # #??? | | ???? ????# #????##?# #" # #??? | | ????###?????## #???????#### ####/### #??? | | ?????????????### #####??????????## #??? | | ???????????????###???????????????##############??? | | ?????????????????????????????????????????????????? | | ?????????????????????????????????????????????????? | | ?????????????????????????????????????????????????? | | ?????????????????????????????????????????????????? | | ?????????????????????????????????????????????????? | | ?????????????????????????????????????????????????? | | ?????????????????????????????????????????????????? | +----------------------------------------------------+ Best States ------------- Heat Dissipation 108 Energy Generation 15 Energy Capacity 280 Matter Stores 300 Matter Capacity 300 Sight Range 22 Terrain Scan Density 210 Armor Coverage 900 Evasion (%) 56 Melee Accuracy 10 Armor Integrity Analysis 33 Recoil Reduction 3 Item Schematics ----------------- Adv. Hacking Suite | -7/Factory | Hacked Combat Drone Bay | -7/Data Miner | Free Lgt. Regenerative Plating | -7/Data Miner | Free Cmb. Gravmag System | -7/Data Miner | Free Exp. ECM Suite | -7/Data Miner | Free Triangulator | -7/Data Miner | Free Cloaking Device | -7/Data Miner | Free Mni. Smartbomb Launcher | -7/Data Miner | Free Kinetic Spear | -7/Data Miner | Free Robot Schematics ------------------ S-27 Virus | -7/Data Miner | Free G-50 Soldier | -7/Data Miner | Free G-67 Veteran | -7/Data Miner | Free X-72 Disruptor | -7/Data Miner | Free L-41 Fighter | -7/Data Miner | Free H-66 Slayer | -7/Data Miner | Free P-70 Sage | -7/Data Miner | Free I-36 Angel | -7/Data Miner | Free Fabricated ------------ Nothing Alien Tech Used ----------------- None Achievements -------------- None Challenges ------------ None Game ------ Seed TerrabombHardenedRedirector Manual? 0 Play Time 00:39:23 Cumulative 439.9 hours Start 2021.06.11 @ 17:31:04 End 2021.06.11 @ 18:09:39 Sessions 1 Manual Loads 0 Difficulty Rogue Special Mode None Game No. 337 Rogue 330 Adventurer 0 Explorer 7 Win Type - Total 20 Types 8/2/9/1/0/0/0/0/0 Lore% 81 Gallery% 94 Achievement% 78 Wizard Run 0 Options --------- ASCII 0 Keyboard 0 Movement Numpad Keybinds 0 Fullscreen 1 Font 18/X11Bold Map View 76x50 Tactical HUD 1 Map Filters NONE Filters NONE Steam 1 RUN: 22b86db3-55dd-4a78-9554-7c3a516eac08